fUST/lending_fUST_20250315
["ID","MTS","AMOUNT","RATE_DAILY","PERIOD"]
[356177970,1742021445233,-505.74678534,8.219e-05,2]
[356177971,1742021445244,-500.0,8.219e-05,2]
[356177972,1742021445253,-500.0,8.219e-05,2]
[356177973,1742021445263,-500.0,8.219e-05,2]
[356177974,1742021445274,-500.0,8.219e-05,2]
[356177975,1742021445283,-515.40578296,8.219e-05,2]
[356177976,1742021445293,-559.42391411,8.219e-05,2]
[356177977,1742021445302,-500.0,8.219e-05,2]
[356177978,1742021445312,-514.02160902,8.219e-05,2]
[356177979,1742021445322,-524.49,8.219e-05,2]
[356177980,1742021445332,-500.0,8.219e-05,2]
[356177981,1742021445341,-500.0,8.219e-05,2]
[356177982,1742021445351,-523.83605227,8.219e-05,2]
[356177983,1742021445360,-507.33836012,8.219e-05,2]
[356177984,1742021445370,-500.0,8.219e-05,2]
[356177985,1742021445380,-500.0,8.219e-05,2]
[356177986,1742021445389,-500.0,8.219e-05,2]
[356177987,1742021445400,-528.27,8.219e-05,2]
[356177988,1742021445409,-998.92,8.219e-05,2]
[356177989,1742021445419,-500.0,8.219e-05,2]
[356177990,1742021445429,-289.38049662,8.219e-05,2]
[356177991,1742021445439,-500.0,8.219e-05,2]
[356177992,1742021445448,-500.0,8.219e-05,2]
[356177993,1742021445458,-500.0,8.219e-05,2]
[356177994,1742021445467,-507.80073946,8.219e-05,2]
[356177995,1742021445477,-512.2611982,8.219e-05,2]
[356177996,1742021445487,-516.73529096,8.219e-05,2]
[356177997,1742021445496,-500.0,8.219e-05,2]
[356177998,1742021445506,-513.44494879,8.219e-05,2]
[356177999,1742021445516,-500.0,8.219e-05,2]
[356178000,1742021445525,-500.0,8.219e-05,2]
[356178001,1742021445535,-506.85022262,8.219e-05,2]
[356178002,1742021445545,-500.0,8.219e-05,2]
[356178003,1742021445555,-500.0,8.219e-05,2]
[356178004,1742021445565,-500.0,8.219e-05,2]
[356178005,1742021445575,-500.0,8.219e-05,2]
[356178006,1742021445585,-566.94,8.219e-05,2]
[356178007,1742021445595,-500.0,8.219e-05,2]
[356178008,1742021445604,-500.0,8.219e-05,2]
[356178009,1742021445614,-500.0,8.219e-05,2]
[356178010,1742021445835,-500.0,8.219e-05,2]
[356178011,1742021445845,-500.0,8.219e-05,2]
[356178012,1742021445855,-500.0,8.219e-05,2]
[356178013,1742021445865,-500.0,8.219e-05,2]
[356178014,1742021445874,-473.7286615,8.219e-05,2]
[356178015,1742021445883,-511.78636602,8.219e-05,2]
[356178016,1742021445893,-500.0,8.219e-05,2]
[356178017,1742021445903,-500.0,8.219e-05,2]
[356178018,1742021445913,-595.46,8.219e-05,2]
[356178019,1742021445923,-717.67,8.219e-05,2]
[356178020,1742021445932,-518.45129798,8.219e-05,2]
[356178022,1742021445941,-500.0,8.219e-05,2]
[356178023,1742021445951,-500.0,8.219e-05,2]
[356178024,1742021445962,-500.0,8.219e-05,2]
[356178025,1742021445971,-500.0,8.219e-05,2]
[356178026,1742021445981,-500.0,8.219e-05,2]
[356178027,1742021445991,-500.0,8.219e-05,2]
[356178028,1742021446000,-500.0,8.219e-05,2]
[356178029,1742021446010,-500.0,8.219e-05,2]
[356178030,1742021446020,-500.0,8.219e-05,2]
[356178031,1742021446029,-660.95,8.219e-05,2]
[356178032,1742021446040,-1927.38,8.219e-05,2]
[356178033,1742021446050,-500.0,8.219e-05,2]
[356178034,1742021446059,-500.0,8.219e-05,2]
[356178035,1742021446068,-500.0,8.219e-05,2]
[356178036,1742021446078,-500.0,8.219e-05,2]
[356178037,1742021446088,-506.20841588,8.219e-05,2]
[356178038,1742021446098,-500.0,8.219e-05,2]
[356178039,1742021446107,-515.66869938,8.219e-05,2]
[356178040,1742021446117,-500.0,8.219e-05,2]
[356178041,1742021446127,-126592.13,8.219e-05,2]
[356178042,1742021446136,-500.0,8.219e-05,2]
[356178043,1742021446145,-11344.03,8.219e-05,2]
[356178044,1742021446155,-500.0,8.219e-05,2]
[356178045,1742021446164,-500.0,8.219e-05,2]
[356178046,1742021446174,-518.57845375,8.219e-05,2]
[356178047,1742021446184,-4509.25,8.219e-05,2]
[356178048,1742021446193,-500.0,8.219e-05,2]
[356178049,1742021446203,-500.0,8.219e-05,2]
[356178050,1742021446212,-1030.29,8.219e-05,2]
[356178051,1742021446221,-500.0,8.219e-05,2]
[356178052,1742021446231,-500.0,8.219e-05,2]
[356178053,1742021446240,-500.0,8.219e-05,2]
[356178054,1742021446250,-3948.41,8.219e-05,2]
[356178055,1742021446259,-3948.41,8.219e-05,2]
[356178056,1742021446268,-3948.41,8.219e-05,2]
[356178057,1742021446278,-3948.41,8.219e-05,2]
[356178058,1742021446289,-3948.41,8.219e-05,2]
[356178059,1742021446298,-500.0,8.219e-05,2]
[356178060,1742021446308,-3948.41,8.219e-05,2]
[356178061,1742021446319,-3948.41,8.219e-05,2]
[356178062,1742021446329,-821.89,8.219e-05,2]
[356178063,1742021446338,-3948.41,8.219e-05,2]
[356178064,1742021446347,-3948.41,8.219e-05,2]
[356178065,1742021446356,-500.0,8.219e-05,2]
[356178066,1742021446367,-3948.41,8.219e-05,2]
[356178067,1742021446376,-3948.41,8.219e-05,2]
[356178068,1742021446386,-3948.41,8.219e-05,2]
[356178069,1742021446395,-3948.41,8.219e-05,2]
[356178071,1742021446405,-3948.41,8.219e-05,2]
[356178072,1742021446414,-3948.41,8.219e-05,2]
[356178073,1742021446423,-3948.41,8.219e-05,2]
[356178074,1742021446433,-3948.41,8.219e-05,2]
[356178076,1742021446443,-3948.41,8.219e-05,2]
[356178077,1742021446453,-3948.41,8.219e-05,2]
[356178078,1742021446463,-3948.41,8.219e-05,2]
[356178079,1742021446472,-3948.41,8.219e-05,2]
[356178080,1742021446482,-3948.41,8.219e-05,2]
[356178081,1742021446491,-3948.41,8.219e-05,2]
[356178082,1742021446501,-3948.63638031,8.219e-05,2]
[356178083,1742021446510,-500.0,8.219e-05,2]
[356178084,1742021446520,-500.0,8.219e-05,2]
[356178085,1742021446529,-2679.0,8.219e-05,2]
[356178086,1742021446539,-196.33665202,8.219e-05,2]
[356178087,1742021446548,-1401.62,8.219e-05,2]
[356178088,1742021446557,-518.8,8.219e-05,2]
[356178089,1742021446567,-500.0,8.219e-05,2]
[356178090,1742021446576,-8363.41,8.219e-05,2]
[356178091,1742021446586,-500.0,8.219e-05,2]
[356178092,1742021446596,-1249.51,8.219e-05,2]
[356178093,1742021446606,-503.61724408,8.219e-05,2]
[356178094,1742021446615,-500.0,8.219e-05,2]
[356178095,1742021446625,-510.02513251,8.219e-05,2]
[356178096,1742021446634,-4072.34,8.219e-05,2]
[356178097,1742021446644,-4544.53,8.219e-05,2]
[356178098,1742021446653,-671.27,8.219e-05,2]
[356178099,1742021446663,-500.0,8.219e-05,2]
[356178100,1742021446672,-500.0,8.219e-05,2]
[356178101,1742021446682,-9919.91,8.219e-05,2]
[356178102,1742021446691,-521.25021005,8.219e-05,2]
[356178103,1742021446702,-500.0,8.219e-05,2]
[356178104,1742021446713,-500.0,8.219e-05,2]
[356178105,1742021446724,-500.0,8.219e-05,2]
[356178106,1742021446734,-500.0,8.219e-05,2]
[356178107,1742021446744,-516.72371273,8.219e-05,2]
[356178108,1742021446754,-633.01,8.219e-05,2]
[356178109,1742021446763,-508.85110333,8.219e-05,2]
[356178110,1742021446774,-7226.88,8.219e-05,2]
[356178111,1742021446784,-500.0,8.219e-05,2]
[356178112,1742021446794,-741.03,8.219e-05,2]
[356178113,1742021446805,-500.0,8.219e-05,2]
[356178114,1742021446815,-509.73235958,8.219e-05,2]
[356178115,1742021446825,-500.0,8.219e-05,2]
[356178116,1742021446835,-1757.04,8.219e-05,2]
[356178117,1742021446845,-301.95798311,8.219e-05,2]
[356178118,1742021446864,-959.25772352,8.219e-05,2]
[356178119,1742021446876,-418.52429337,8.219e-05,2]
[356178120,1742021446885,-510.50555462,8.219e-05,2]
[356178121,1742021446895,-156.04364646,8.219e-05,2]
[356178122,1742021446913,-343.95635354,8.219e-05,2]
[356178123,1742021446922,-500.0,8.219e-05,2]
[356178124,1742021446931,-517.00029837,8.219e-05,2]
[356178125,1742021446940,-500.0,8.219e-05,2]
[356178126,1742021446950,-500.0,8.219e-05,2]
[356178127,1742021446962,-256.75629279,8.219e-05,2]
[356178128,1742021446974,-243.24370721,8.219e-05,2]
[356178129,1742021446984,-494.54858478,8.219e-05,2]
[356178130,1742021447545,-5.45141522,8.219e-05,2]
[356178131,1742021447554,-5017.53388006,8.219e-05,2]
[356178132,1742021447566,-895.62764277,8.219e-05,2]
[356178133,1742021447577,-753.5,8.219e-05,2]
[356178135,1742021664388,2021.12301891,8e-05,2]
[356178136,1742021763861,-167.28517956,8.118e-05,2]
[356178137,1742021763893,-260.74697936,8.118e-05,2]
[356178138,1742021763923,-182.52288555,8.118e-05,2]
[356178139,1742021763953,-300.0,8.118e-05,2]
[356178140,1742021763983,-4648.44495553,8.119e-05,2]
[356178141,1742022305332,105309.26447384,8e-05,2]
[356178142,1742022341119,-300.0,8.118e-05,2]
[356178143,1742022341140,-19237.767567,8.119e-05,2]
[356178144,1742022350088,-443.3887611,8.119e-05,2]
[356178145,1742022435095,-300.0,8.118e-05,2]
[356178146,1742022435119,-69216.60943967,8.119e-05,2]
[356178147,1742022554796,304.95471,0.00013161,30]
[356178149,1742022600125,343.12157,0.00013161,30]
[356178187,1742022632832,-300.0,8.118e-05,2]
[356178189,1742022632842,-13983.97040471,8.119e-05,2]
[356178324,1742022638675,-1004.59225006,8.119e-05,2]
[356178330,1742022638733,-80764.86706047,8.119e-05,2]
[356178333,1742022638811,-2170.863063,8.119e-05,2]
[356178420,1742022646695,-7724.06771552,8.119e-05,2]
[356178718,1742023155281,304.954712,0.00013161,30]
[356178722,1742023611160,-242.18547723,8.118e-05,2]
[356178780,1742023840077,-300.5535877,8.11e-05,2]
[356178781,1742023840087,-300.0,8.118e-05,2]
[356178782,1742023840099,-3597.65615255,8.119e-05,2]
[356178792,1742023843530,-7242.46668669,8.119e-05,2]
[356178793,1742023843542,-4453.5447954,8.119e-05,2]
[356178801,1742023845903,-588.00235,8.119e-05,2]
[356178804,1742024104277,213.67400403,8e-05,2]
[356178805,1742024113212,195.0,8e-05,2]
[356178806,1742024122276,195.0,8e-05,2]
[356178807,1742024180330,19400.6698045,7.269e-05,2]
[356178808,1742024447857,152.18963839,8e-05,120]
[356178809,1742024491258,5531.92,8e-05,2]
[356178844,1742025032126,-185.22945846,8.018e-05,2]
[356178846,1742025032136,-300.0,8.018e-05,2]
[356178848,1742025032145,-24993.83516976,8.019e-05,2]
[356178899,1742025037985,-45594.93354514,8.019e-05,2]
[356178902,1742025037997,-4816.17765286,8.019e-05,2]
[356178947,1742025040446,-4201.378988,8.019e-05,2]
[356178949,1742025040458,-507.80617377,8.019e-05,2]
[356179114,1742025063662,4762.23241102,8e-05,2]
[356179115,1742025072677,1590.59740406,8e-05,2]
[356179117,1742025594655,222000.0,7.919e-05,2]
[356179118,1742025716779,222000.0,7.919e-05,2]
[356179119,1742025947301,-177.06373378,8.118e-05,2]
[356179120,1742025947323,-266.32502732,8.118e-05,2]
[356179122,1742026000346,-300.0,9e-05,4]
[356179123,1742026005788,-300.0,9e-05,4]
[356179124,1742026006876,-300.0,9e-05,4]
[356179160,1742026232388,-300.0,8.118e-05,2]
[356179162,1742026232399,-3903.65363568,8.119e-05,2]
[356179204,1742026238189,-218096.34636432,8.119e-05,2]
[356179205,1742026238199,-338.62636598,8.193e-05,2]
[356179206,1742026238208,-500.0,8.193e-05,2]
[356179207,1742026238217,-195.0,8.2e-05,2]
[356179208,1742026238227,-399.0,8.214e-05,2]
[356179209,1742026238236,-150.0,8.214e-05,2]
[356179211,1742026238564,-150.0,8.214e-05,2]
[356179212,1742026238592,-2269.0,8.214e-05,2]
[356179213,1742026238607,-540.0,8.214e-05,2]
[356179214,1742026238617,-1914.0,8.214e-05,2]
[356179215,1742026238626,-204.14306495,8.219e-05,2]
[356179216,1742026238636,-12699.48795239,8.219e-05,2]
[356179217,1742026238645,-501.90156316,8.219e-05,2]
[356179218,1742026238655,-501.81105167,8.219e-05,2]
[356179219,1742026238665,-500.0,8.219e-05,2]
[356179220,1742026238675,-500.0,8.219e-05,2]
[356179221,1742026238685,-500.0,8.219e-05,2]
[356179222,1742026238695,-500.0,8.219e-05,2]
[356179223,1742026238705,-519.85522478,8.219e-05,2]
[356179224,1742026238714,-508.40005126,8.219e-05,2]
[356179225,1742026238724,-501.17329362,8.219e-05,2]
[356179226,1742026238733,-502.09647414,8.219e-05,2]
[356179227,1742026238743,-500.0,8.219e-05,2]
[356179228,1742026238753,-500.29934124,8.219e-05,2]
[356179229,1742026238763,-500.0,8.219e-05,2]
[356179230,1742026238772,-517.79966918,8.219e-05,2]
[356179231,1742026238782,-507.649659,8.219e-05,2]
[356179232,1742026238794,-500.0,8.219e-05,2]
[356179233,1742026238803,-295.86372202,8.219e-05,2]
[356179234,1742026238813,-503.24057092,8.219e-05,2]
[356179235,1742026238823,-514.0834593,8.219e-05,2]
[356179236,1742026238833,-513.59971782,8.219e-05,2]
[356179237,1742026238842,-333.17408474,8.219e-05,2]
[356179238,1742026238852,-500.0,8.219e-05,2]
[356179239,1742026238861,-500.0,8.219e-05,2]
[356179240,1742026238871,-517.39459128,8.219e-05,2]
[356179241,1742026238881,-518.31345679,8.219e-05,2]
[356179242,1742026238891,-392.75687274,8.219e-05,2]
[356179243,1742026238900,-500.0,8.219e-05,2]
[356179244,1742026238910,-524.4629664,8.219e-05,2]
[356179245,1742026238920,-510.25442433,8.219e-05,2]
[356179246,1742026238933,-503.99438893,8.219e-05,2]
[356179247,1742026238942,-506.360225,8.219e-05,2]
[356179248,1742026238951,-500.0,8.219e-05,2]
[356179249,1742026238961,-456.44114264,8.219e-05,2]
[356179250,1742026238970,-511.22767389,8.219e-05,2]
[356179251,1742026238980,-500.0,8.219e-05,2]
[356179252,1742026238989,-500.0,8.219e-05,2]
[356179253,1742026238999,-504.34506794,8.219e-05,2]
[356179254,1742026239009,-500.0,8.219e-05,2]
[356179255,1742026239018,-500.0,8.219e-05,2]
[356179256,1742026239031,-514.85277248,8.219e-05,2]
[356179257,1742026239041,-500.0,8.219e-05,2]
[356179258,1742026239050,-500.0,8.219e-05,2]
[356179259,1742026239059,-506.45926966,8.219e-05,2]
[356179260,1742026239069,-504.76941021,8.219e-05,2]
[356179261,1742026239079,-500.0,8.219e-05,2]
[356179262,1742026239089,-610.09619214,8.219e-05,2]
[356179263,1742026239100,-500.0,8.219e-05,2]
[356179264,1742026239111,-500.0,8.219e-05,2]
[356179265,1742026239121,-505.15352816,8.219e-05,2]
[356179266,1742026239131,-557.41303201,8.219e-05,2]
[356179267,1742026239141,-500.99748965,8.219e-05,2]
[356179268,1742026239151,-162.05223427,8.219e-05,2]
[356179269,1742026239161,-505.35837935,8.219e-05,2]
[356179270,1742026239171,-500.0,8.219e-05,2]
[356179271,1742026239181,-500.0,8.219e-05,2]
[356179272,1742026239190,-511.12234713,8.219e-05,2]
[356179273,1742026239199,-510.25257129,8.219e-05,2]
[356179274,1742026239208,-537.82,8.219e-05,2]
[356179275,1742026239218,-500.0,8.219e-05,2]
[356179276,1742026239227,-500.0,8.219e-05,2]
[356179277,1742026239237,-500.0,8.219e-05,2]
[356179278,1742026239246,-500.0,8.219e-05,2]
[356179279,1742026239256,-500.0,8.219e-05,2]
[356179280,1742026239266,-609.57345088,8.219e-05,2]
[356179281,1742026239275,-500.78638229,8.219e-05,2]
[356179282,1742026239285,-500.0,8.219e-05,2]
[356179283,1742026239294,-500.0,8.219e-05,2]
[356179284,1742026239303,-501.95782397,8.219e-05,2]
[356179285,1742026239313,-500.0,8.219e-05,2]
[356179286,1742026239322,-500.0,8.219e-05,2]
[356179287,1742026239332,-641.71,8.219e-05,2]
[356179288,1742026239341,-512.67480006,8.219e-05,2]
[356179289,1742026239351,-500.0,8.219e-05,2]
[356179290,1742026239360,-500.0,8.219e-05,2]
[356179291,1742026239370,-500.0,8.219e-05,2]
[356179292,1742026239380,-500.0,8.219e-05,2]
[356179293,1742026239389,-502.92998465,8.219e-05,2]
[356179294,1742026239399,-500.0,8.219e-05,2]
[356179295,1742026239408,-500.0,8.219e-05,2]
[356179296,1742026239419,-630.18,8.219e-05,2]
[356179297,1742026239429,-500.0,8.219e-05,2]
[356179298,1742026239438,-506.75194903,8.219e-05,2]
[356179299,1742026239448,-516.64942364,8.219e-05,2]
[356179300,1742026239459,-500.0,8.219e-05,2]
[356179301,1742026239469,-523.51861151,8.219e-05,2]
[356179302,1742026239478,-509.0642755,8.219e-05,2]
[356179303,1742026239488,-231.39,8.219e-05,2]
[356179304,1742026239498,-509.91681131,8.219e-05,2]
[356179305,1742026239509,-500.0,8.219e-05,2]
[356179306,1742026239519,-500.0,8.219e-05,2]
[356179307,1742026239529,-516.19516329,8.219e-05,2]
[356179308,1742026239539,-500.0,8.219e-05,2]
[356179309,1742026239549,-516.2050721,8.219e-05,2]
[356179310,1742026239558,-500.0,8.219e-05,2]
[356179311,1742026239571,-501.93216197,8.219e-05,2]
[356179312,1742026239580,-500.0,8.219e-05,2]
[356179313,1742026239590,-1526.14,8.219e-05,2]
[356179314,1742026239599,-500.0,8.219e-05,2]
[356179315,1742026239609,-500.0,8.219e-05,2]
[356179316,1742026239620,-503.81218186,8.219e-05,2]
[356179317,1742026239628,-500.0,8.219e-05,2]
[356179318,1742026239638,-588.94,8.219e-05,2]
[356179319,1742026239647,-504.1374735,8.219e-05,2]
[356179320,1742026239658,-500.88368956,8.219e-05,2]
[356179321,1742026239667,-507.73572095,8.219e-05,2]
[356179322,1742026239677,-500.0,8.219e-05,2]
[356179324,1742026239687,-502.9477011,8.219e-05,2]
[356179325,1742026239696,-500.0,8.219e-05,2]
[356179326,1742026239717,-500.0,8.219e-05,2]
[356179327,1742026239727,-500.0,8.219e-05,2]
[356179328,1742026239738,-534.99,8.219e-05,2]
[356179329,1742026239748,-500.0,8.219e-05,2]
[356179330,1742026239758,-506.15518594,8.219e-05,2]
[356179331,1742026239768,-500.0,8.219e-05,2]
[356179332,1742026239778,-505.16776933,8.219e-05,2]
[356179333,1742026239789,-599.78,8.219e-05,2]
[356179334,1742026239799,-500.0,8.219e-05,2]
[356179335,1742026239808,-500.0,8.219e-05,2]
[356179336,1742026239818,-501.36196786,8.219e-05,2]
[356179337,1742026239828,-806.4,8.219e-05,2]
[356179338,1742026239838,-500.0,8.219e-05,2]
[356179339,1742026239847,-519.52345631,8.219e-05,2]
[356179340,1742026239857,-500.0,8.219e-05,2]
[356179341,1742026239868,-500.0,8.219e-05,2]
[356179342,1742026239878,-500.0,8.219e-05,2]
[356179343,1742026239888,-607.19987057,8.219e-05,2]
[356179345,1742026239898,-205.08929982,8.219e-05,2]
[356179346,1742026239908,-510.94948417,8.219e-05,2]
[356179347,1742026239919,-500.0,8.219e-05,2]
[356179348,1742026239928,-500.0,8.219e-05,2]
[356179349,1742026239938,-500.0,8.219e-05,2]
[356179350,1742026239948,-500.0,8.219e-05,2]
[356179351,1742026239958,-500.0,8.219e-05,2]
[356179352,1742026239968,-500.0,8.219e-05,2]
[356179353,1742026239978,-500.0,8.219e-05,2]
[356179354,1742026239988,-512.17420435,8.219e-05,2]
[356179355,1742026239998,-500.0,8.219e-05,2]
[356179356,1742026240008,-508.65,8.219e-05,2]
[356179357,1742026240018,-500.0,8.219e-05,2]
[356179358,1742026240032,-631.63,8.219e-05,2]
[356179359,1742026240041,-500.0,8.219e-05,2]
[356179360,1742026240051,-500.0,8.219e-05,2]
[356179361,1742026240061,-500.0,8.219e-05,2]
[356179362,1742026240073,-507.66329465,8.219e-05,2]
[356179363,1742026240083,-511.87519522,8.219e-05,2]
[356179364,1742026240093,-500.0,8.219e-05,2]
[356179365,1742026240103,-508.41723452,8.219e-05,2]
[356179366,1742026240116,-520.71081859,8.219e-05,2]
[356179367,1742026240126,-500.0,8.219e-05,2]
[356179368,1742026240136,-500.0,8.219e-05,2]
[356179369,1742026240146,-500.0,8.219e-05,2]
[356179370,1742026240156,-500.0,8.219e-05,2]
[356179371,1742026240172,-513.43023517,8.219e-05,2]
[356179372,1742026240182,-500.5082628,8.219e-05,2]
[356179373,1742026240192,-500.0,8.219e-05,2]
[356179374,1742026240202,-500.0,8.219e-05,2]
[356179375,1742026240212,-500.0,8.219e-05,2]
[356179376,1742026240221,-500.0,8.219e-05,2]
[356179377,1742026240231,-500.0,8.219e-05,2]
[356179378,1742026240242,-513.28199457,8.219e-05,2]
[356179379,1742026240253,-500.0,8.219e-05,2]
[356179380,1742026240263,-500.0,8.219e-05,2]
[356179381,1742026240272,-500.0,8.219e-05,2]
[356179382,1742026240282,-521.18108084,8.219e-05,2]
[356179383,1742026240293,-658.55,8.219e-05,2]
[356179384,1742026240302,-500.0,8.219e-05,2]
[356179385,1742026240312,-500.0,8.219e-05,2]
[356179386,1742026240322,-713.15,8.219e-05,2]
[356179387,1742026240332,-500.13160648,8.219e-05,2]
[356179388,1742026240342,-500.0,8.219e-05,2]
[356179389,1742026240352,-500.0,8.219e-05,2]
[356179390,1742026240362,-500.0,8.219e-05,2]
[356179391,1742026240372,-500.0,8.219e-05,2]
[356179392,1742026240382,-500.0,8.219e-05,2]
[356179393,1742026240392,-500.0,8.219e-05,2]
[356179394,1742026240402,-500.0,8.219e-05,2]
[356179395,1742026240412,-512.16,8.219e-05,2]
[356179396,1742026240422,-676.14,8.219e-05,2]
[356179398,1742026240432,-500.0,8.219e-05,2]
[356179399,1742026240442,-512.74202466,8.219e-05,2]
[356179400,1742026240453,-500.0,8.219e-05,2]
[356179401,1742026240463,-1159.74,8.219e-05,2]
[356179402,1742026240474,-294.7923115,8.219e-05,2]
[356179403,1742026240483,-500.0,8.219e-05,2]
[356179404,1742026240493,-500.0,8.219e-05,2]
[356179405,1742026240503,-500.0,8.219e-05,2]
[356179406,1742026240513,-513.12041397,8.219e-05,2]
[356179407,1742026240524,-1343.22,8.219e-05,2]
[356179408,1742026240534,-500.0,8.219e-05,2]
[356179409,1742026240551,-500.0,8.219e-05,2]
[356179410,1742026240562,-500.0,8.219e-05,2]
[356179411,1742026240573,-500.0,8.219e-05,2]
[356179412,1742026240583,-525.99521833,8.219e-05,2]
[356179413,1742026240593,-500.0,8.219e-05,2]
[356179414,1742026240603,-500.0,8.219e-05,2]
[356179415,1742026240613,-126650.63,8.219e-05,2]
[356179416,1742026240623,-500.0,8.219e-05,2]
[356179417,1742026240634,-500.0,8.219e-05,2]
[356179418,1742026240643,-500.0,8.219e-05,2]
[356179419,1742026240653,-500.0,8.219e-05,2]
[356179420,1742026240663,-500.0,8.219e-05,2]
[356179421,1742026240673,-500.0,8.219e-05,2]
[356179422,1742026240683,-500.0,8.219e-05,2]
[356179423,1742026240693,-500.0,8.219e-05,2]
[356179424,1742026240703,-500.0,8.219e-05,2]
[356179425,1742026240712,-4019.63,8.219e-05,2]
[356179426,1742026240722,-2636.92,8.219e-05,2]
[356179427,1742026240732,-500.0,8.219e-05,2]
[356179428,1742026240742,-4432.69,8.219e-05,2]
[356179429,1742026240752,-500.0,8.219e-05,2]
[356179430,1742026240763,-9614.58,8.219e-05,2]
[356179431,1742026240773,-1275.37,8.219e-05,2]
[356179432,1742026240783,-11351.8,8.219e-05,2]
[356179433,1742026240796,-500.0,8.219e-05,2]
[356179434,1742026240806,-500.0,8.219e-05,2]
[356179435,1742026240816,-787.65,8.219e-05,2]
[356179436,1742026240827,-1527.38,8.219e-05,2]
[356179437,1742026240837,-678.17,8.219e-05,2]
[356179438,1742026240846,-500.0,8.219e-05,2]
[356179439,1742026240856,-500.0,8.219e-05,2]
[356179440,1742026240866,-8296.46,8.219e-05,2]
[356179441,1742026240877,-535.11384951,8.219e-05,2]
[356179442,1742026240887,-500.0,8.219e-05,2]
[356179443,1742026240896,-500.0,8.219e-05,2]
[356179444,1742026240906,-1071.41,8.219e-05,2]
[356179445,1742026240916,-500.0,8.219e-05,2]
[356179446,1742026240926,-500.0,8.219e-05,2]
[356179447,1742026240936,-500.0,8.219e-05,2]
[356179448,1742026240947,-500.0,8.219e-05,2]
[356179449,1742026240957,-500.0,8.219e-05,2]
[356179450,1742026240967,-500.0,8.219e-05,2]
[356179451,1742026240977,-5747.57,8.219e-05,2]
[356179452,1742026240987,-235.31,8.219e-05,2]
[356179453,1742026240998,-1727.93,8.219e-05,2]
[356179454,1742026241008,-763.3,8.219e-05,2]
[356179455,1742026241018,-500.0,8.219e-05,2]
[356179456,1742026241030,-579.5,8.219e-05,2]
[356179457,1742026241040,-500.0,8.219e-05,2]
[356179458,1742026241049,-13355.34,8.219e-05,2]
[356179459,1742026241059,-500.0,8.219e-05,2]
[356179460,1742026241070,-1749.71,8.219e-05,2]
[356179461,1742026241080,-500.0,8.219e-05,2]
[356179462,1742026241090,-514.73188177,8.219e-05,2]
[356179463,1742026241102,-500.0,8.219e-05,2]
[356179464,1742026241112,-500.0,8.219e-05,2]
[356179465,1742026241123,-500.0,8.219e-05,2]
[356179466,1742026241133,-500.0,8.219e-05,2]
[356179467,1742026241143,-500.0,8.219e-05,2]
[356179468,1742026241153,-1089.27,8.219e-05,2]
[356179469,1742026241163,-500.0,8.219e-05,2]
[356179470,1742026241174,-500.0,8.219e-05,2]
[356179471,1742026241183,-500.0,8.219e-05,2]
[356179472,1742026241193,-500.0,8.219e-05,2]
[356179473,1742026241203,-2864.53,8.219e-05,2]
[356179474,1742026241214,-500.0,8.219e-05,2]
[356179475,1742026241224,-500.0,8.219e-05,2]
[356179476,1742026241234,-500.0,8.219e-05,2]
[356179477,1742026241244,-500.0,8.219e-05,2]
[356179478,1742026241254,-6925.76,8.219e-05,2]
[356179479,1742026241263,-516.77,8.219e-05,2]
[356179480,1742026241274,-3910.7,8.219e-05,2]
[356179481,1742026241284,-605.41,8.219e-05,2]
[356179482,1742026241294,-871.24,8.219e-05,2]
[356179483,1742026241305,-6509.27,8.219e-05,2]
[356179484,1742026241315,-1714.35,8.219e-05,2]
[356179485,1742026241326,-513.09,8.219e-05,2]
[356179486,1742026241336,-2781.19,8.219e-05,2]
[356179487,1742026241347,-500.0,8.219e-05,2]
[356179488,1742026241358,-500.0,8.219e-05,2]
[356179489,1742026241368,-539.03,8.219e-05,2]
[356179490,1742026241378,-500.0,8.219e-05,2]
[356179491,1742026241389,-242.32338447,8.219e-05,2]
[356179492,1742026241399,-872.87,8.219e-05,2]
[356179493,1742026241409,-500.0,8.219e-05,2]
[356179494,1742026241419,-507.67561042,8.219e-05,2]